Cogmind - Beta 13 *** ADVENTURER MODE // 2024.04.25 @ 22:16:39 Player: SlyFyer Result: Destroyed by 38-IUI(R) with Subdweller Machine Gun Performance ------------- Evolutions (0) 0 Regions Visited (2) 400 Robots Destroyed (36) 180 Value Destroyed (979) 979 Prototype IDs (10) 200 Alien Tech Used (0) 0 Bonus (0) 0 TOTAL SCORE: 1759 Bonus ------- None Cogmind --------- Core Integrity 0/250 Matter 69/300 Energy 265/265 System Corruption 0% Temperature Cool (0) Movement Treading (480) Ox4 Location -10/Subcaves Parts ------- > --- POWER (1) -------- Improved Ion Engine > --- PROPULSION (2) --- Light Treads > --- UTILITY (2) ------ Huge Storage Unit Core Shielding > --- WEAPON (2) ------- Improved Light Cannon Improved Light Cannon > --- INVENTORY (25) --- Improved Ion Engine Disposable Heat Sink High-capacity Matter Pod (200) High-capacity Matter Pod (103) Structural Scanner Sensor Array Core Shielding Core Shielding Weapon Shielding Scrap Shield Tractor Beam Power Bank Heavy Riot Gun Dirty Datajack (20) Dirty Datajack (20) Multitool Makeshift Sword Peak State ------------ > --- POWER ------------ Improved Ion Engine > --- PROPULSION ------- Light Treads Spiked Treads > --- UTILITY ---------- Huge Storage Unit Core Shielding > --- WEAPON ----------- Barrage Gun Makeshift Sword > --- INVENTORY -------- Improved Ion Engine Improved Ion Engine Light Treads Light Treads Light Treads Disposable Heat Sink High-capacity Matter Pod High-capacity Matter Pod Structural Scanner Sensor Array Core Shielding Core Shielding Weapon Shielding Scrap Shield Tractor Beam Trap Extractor Heavy Riot Gun Beam Cannon Improved Light Cannon Improved Light Cannon Improved Light Cannon Improved Light Cannon Dirty Datajack Multitool [Rating: 18] Favorites ----------- Power Improved Ion Engine Engine Improved Ion Engine Propulsion Light Treads Treads Light Treads Utility Huge Storage Unit Device Improved Terrain Scanner Storage Huge Storage Unit Processor Signal Interpreter Protection Core Shielding Weapon Improved Light Cannon Energy Gun EM Pulse Gun Energy Cannon Subdweller Beam Cannon Ballistic Gun Assault Rifle Ballistic Cannon Improved Light Cannon Special Weapon Mining Laser Slashing Weapon Makeshift Sword Build | -11 -10 -10 ------- Run | Yrd Mat Sub Slots Evolved . | . . . Power . | . . . Propulsion . | . . . Utility . | . . . Weapon . | . . . Parts Attached 51 | 9 11 31 Power 4 | 1 2 1 Engine 4 | 1 2 1 Core . | . . . Reactor . | . . . Propulsion 8 | 2 2 4 Treads 8 | 2 2 4 Leg . | . . . Wheel . | . . . Hover . | . . . Flight . | . . . Utility 7 | 2 3 2 Device 1 | 1 . . Storage 3 | 1 2 . Processor 1 | . . 1 Hackware . | . . . Protection 2 | . 1 1 Artifact . | . . . Weapon 32 | 4 4 24 Energy Gun 1 | 1 . . Energy Cannon 5 | . . 5 Ballistic Gun 9 | 3 3 3 Ballistic Cannon 9 | . . 9 Launcher . | . . . Special Weapon 3 | . 1 2 Impact Weapon . | . . . Slashing Weapon 5 | . . 5 Piercing Weapon . | . . . Special Melee Weapon . | . . . Unidentified Prototypes . | . . . Parts Lost 8 | . . 8 Power 1 | . . 1 Propulsion 4 | . . 4 Utility . | . . . Weapon 3 | . . 3 Highest Loss Streak 2 | . . 2 To Critical Strikes . | . . . Average Slot Usage (%) 99 | . 99 99 Engine 13 | . 14 13 Treads 27 | . 27 27 Device 4 | . 11 . Storage 14 | . 14 14 Protection 9 | . 2 13 Energy Cannon 3 | . . 4 Ballistic Gun 14 | . 24 9 Ballistic Cannon 7 | . . 11 Special Weapon 1 | . 3 . Slashing Weapon 1 | . . 2 Naked Turns . | . . . Heaviest Build 100 | 12 91 100 Greatest Support 40 | 40 40 40 Greatest Overweight (x) 4 | 1 2 4 Average Overweight (x) 1 | . . 2 Largest Inventory Capacity 25 | 8 25 25 Average Capacity 21 | 7 17 25 Most Carried 25 | 5 25 25 Average Carried 19 | 2 15 23 Final Capacity 25 | 8 25 25 Final Carried 25 | 2 25 18 Class Distribution -------------------- 100% | Mutant Dominant Class ---------------- Mutant | -10/Materials Mutant | -10/Subcaves Resources | -11 -10 -10 ----------- Run | Yrd Mat Sub Matter Collected 1655 | 89 447 1119 Remotely . | . . . Salvage Created 835 | 14 311 510 Parts 62 | 2 29 31 Haulers Intercepted 2 | . 2 . Recyclers Shooed . | . . . Parts Field Recycled . | . . . Retrieved Matter . | . . . Parts Self-Destructed 18 | . . 18 Prevented . | . . . Kills | -11 -10 -10 ------- Run | Yrd Mat Sub Combat Hostiles Destroyed 29 | . 8 21 Guns 13 | . 8 5 Cannons 16 | . . 16 Classes Destroyed 8 | 1 4 3 Tunneler 1 | 1 . . Hauler 2 | . 2 . Turret 1 | . . 1 Watcher 3 | . 3 . Swarmer 9 | . 6 3 Grunt 3 | . 2 1 Sentry 1 | . . 1 Subdweller 16 | . . 16 Best Kill Streak 4 | 1 4 3 Combat Bots Only 3 | . 3 3 Max Kills in Single Turn 1 | 1 1 1 Gunslinging . | . . . Exploded . | . . . Melee . | . . . Uniques/NPCs Destroyed . | . . . Combat | -11 -10 -10 -------- Run | Yrd Mat Sub Hostile Shots Fired 236 | . 54 182 Missed 76 | . 21 55 Damage Taken 1993 | . 243 1750 Core 250 | . 33 217 Absorbed by Shields . | . . . Redirected to Shielding 42 | . . 42 Ignored by Resistances 565 | . 75 490 Core Remaining (%) 100 | 100 . . Volleys Fired 285 | 3 41 241 Largest 2 | 2 2 2 Hottest 120 | 40 120 110 Shots Fired 412 | 6 74 332 Gun 112 | 6 71 35 Cannon 293 | . . 293 Launcher . | . . . Special 7 | . 3 4 Kinetic 269 | 6 71 192 Thermal 143 | . 3 140 Explosive . | . . . Electromagnetic . | . . . Robot Hit Streak 29 | 4 19 29 Robot Miss Streak 3 | 1 3 3 Penetration Max . | . . . Secondary Targets 2 | . 2 . Max Gunslinging Chain 1 | . 1 . Shots Hit Robots 196 | 5 52 139 Core Hits 65 | 2 22 41 Critical Kills . | . . . Critical Parts Destroyed . | . . . Critical Strikes 2 | . . 2 Blast 2 | . . 2 Melee Attacks 66 | . . 66 Impact . | . . . Slashing 66 | . . 66 Piercing . | . . . Sneak Attacks . | . . . Combat Hostiles . | . . . Follow-up Attacks . | . . . Damage Inflicted 3504 | 50 576 2878 Guns 984 | 50 528 406 Cannons 2472 | . . 2472 Explosions . | . . . Melee . | . . . Ramming . | . . . Kinetic 3231 | 50 528 2653 Thermal 273 | . 48 225 Explosive . | . . . Electromagnetic . | . . . Impact . | . . . Slashing . | . . . Piercing . | . . . Highest Corruption . | . . . Average Corruption . | . . . Corruption Purged . | . . . Corruption Blocked . | . . . Overload Shots . | . . . Overflow Damage 15 | . . 15 Projectiles 15 | . . 15 Explosions . | . . . Melee . | . . . Knockbacks 15 | . . 15 Impact . | . . . Kinetic 15 | . . 15 Secondary . | . . . Self-Inflicted Damage . | . . . Shots . | . . . Rammed . | . . . Targets Rammed . | . . . Kicked . | . . . Crushed . | . . . Highest Temperature 42 | . 40 42 Average Temperature 9 | . 14 8 Received Heat Transfer 549 | . 72 477 Siege Activations . | . . . Robots Corrupted . | . . . Combat Hostiles . | . . . Parts Fried . | . . . Impact Corruptions . | . . . Robots Melted . | . . . Combat Hostiles . | . . . Parts Melted . | . . . Heat Transferred 396 | . 100 296 Parts Sabotaged . | . . . Parts Stolen . | . . . Parts Stripped . | . . . Power Chain Reactions . | . . . Alert | -11 -10 -10 ------- Run | Yrd Mat Sub Peak Influence 118 | 5 118 . Initial 2 | . 2 . Average 25 | 3 27 . Maximum Alert Level . | . . . Low Security (%) 100 | 100 100 . Level 1 . | . . . Level 2 . | . . . Level 3 . | . . . Level 4 . | . . . Level 5 . | . . . High Security . | . . . Max Security . | . . . Squads Dispatched . | . . . Investigation . | . . . Extermination . | . . . Reinforcement . | . . . Assault . | . . . Garrison . | . . . Intercept . | . . . Searches Triggered . | . . . Construction Impeded . | . . . Haulers Reinforced . | . . . Active Scanning Responses . | . . . Cargo Convoy Interrupts . | . . . Stealth | -11 -10 -10 --------- Run | Yrd Mat Sub Distress Signals . | . . . Communications Jammed . | . . . Distress Signals . | . . . Times Spotted 92 | . 12 80 Peak Tracking Total 4 | . 4 3 Tactical Retreats 7 | . . 7 Traps | -11 -10 -10 ------- Run | Yrd Mat Sub Traps Triggered 3 | . 1 2 Indirectly . | . . . Trap Hack Attempts . | . . . Triggered . | . . . Disarmed . | . . . Reprogrammed . | . . . Reused . | . . . Traps Extracted . | . . . Installed . | . . . Triggered . | . . . Machines | -11 -10 -10 ---------- Run | Yrd Mat Sub Machines Disabled 3 | . . 3 Max in Single Turn 1 | . . 1 Machines Repaired . | . . . Machines Dismantled . | . . . Machines Sabotaged . | . . . Overloaded Fab Kills . | . . . Hacking | -11 -10 -10 --------- Run | Yrd Mat Sub Machines Accessed 11 | . 9 2 Terminals 8 | . 8 . Fabricators . | . . . Repair Stations . | . . . Recycling Units 1 | . 1 . Scanalyzers . | . . . Garrison Access . | . . . Total Hacks 31 | . 20 11 Successful 24 | . 13 11 Failed 7 | . 7 . Catastrophic 2 | . 2 . Database Lockouts . | . . . Manual 13 | . 13 . Terminals 19 | . 19 . Fabricators . | . . . Repair Stations . | . . . Recycling Units 1 | . 1 . Scanalyzers . | . . . Garrison Access . | . . . Terminal Hacks 16 | . 5 11 Record 10 | . . 10 Branch Access Points 1 | . 1 . Terminal Index 1 | . 1 . Alert Level 1 | . 1 . Hauler Manifests 1 | . 1 . Registered Components 1 | . 1 . Derelict Proto ID Bank 1 | . . 1 Fabricator Hacks . | . . . Repair Station Hacks . | . . . Recycling Unit Hacks 1 | . 1 . Retrieve Components 1 | . 1 . Scanalyzer . | . . . Garrison Access Hacks . | . . . Unauthorized Hacks 7 | . 7 . Terminals 7 | . 7 . Track 1 | . 1 . Botnet 6 | . 6 . Fabricators . | . . . Repair Stations . | . . . Recycling Units . | . . . Scanalyzers . | . . . Garrison Access . | . . . Data Cores Recovered . | . . . Used . | . . . Hacking Detections 3 | . 3 . Full Trace Events 1 | . 1 . Feedback Events . | . . . Feedback Blocked . | . . . Robot Schematics Acquired . | . . . Robots Built . | . . . Authchips . | . . . Time . | . . . Total Robot Build Rating . | . . . Part Schematics Acquired . | . . . Parts Built . | . . . Authchips . | . . . Time . | . . . Total Part Build Rating . | . . . Parts Repaired . | . . . Time . | . . . Parts Recycled . | . . . Recycled Matter . | . . . Retrieved Matter . | . . . Retrieved Components 10 | . 10 . Parts Scanalyzed . | . . . Part Schematics Acquired . | . . . Parts Damaged . | . . . Bothacking | -11 -10 -10 ------------ Run | Yrd Mat Sub Used RIF Installer . | . . . Robots Hacked . | . . . Non-combat . | . . . Combat . | . . . Robot Hacks Applied . | . . . Relay Couplers Released . | . . . Fabnet Peak Effective % . | . . . Robots Rewired . | . . . Allies Hacked . | . . . Hacks Repelled . | . . . Allies | -11 -10 -10 -------- Run | Yrd Mat Sub Total Allies . | . . . Largest Group . | . . . Highest-Rated Group . | . . . Highest-Rated Ally . | . . . Total Orders . | . . . Ally Attacks . | . . . Total Damage . | . . . Kills . | . . . Allies Corrupted . | . . . Allies Melted . | . . . Intel | -11 -10 -10 ------- Run | Yrd Mat Sub Robot Analysis Total . | . . . Derelict Logs Recovered . | . . . Drone Launches . | . . . Drone Recoveries . | . . . Exploration | -11 -10 -10 ------------- Run | Yrd Mat Sub Turns Passed 6997 | 261 2353 4383 Spaces Moved 2178 | 66 1014 1098 Core 23 | 23 . . Treads 2155 | 43 1014 1098 Legs . | . . . Wheels . | . . . Hover . | . . . Flight . | . . . Fastest Speed 50 | 50 160 320 Average Speed 269 | 125 214 329 Slowest Speed 480 | 160 320 480 Overloaded Moves . | . . . Propulsion Burnouts . | . . . Robots Hopped . | . . . Cave-ins Triggered . | . . . Exploration Rate (%) 60 | 6 99 76 Regions Visited 2 Branch Regions 1 Pre-discovered Areas . | . . . Known Exits Taken . | . . . Unknown Exits Taken 2 | 1 1 . Scrap Searched 10 | . . 10 Spaces Dug 153 | . 1 152 Terrain Destroyed 160 | . 1 159 Melee 65 | . . 65 Projectile 95 | . 1 94 AOE . | . . . Terrain Rammed . | . . . Walls Destroyed . | . . . Machines Disabled . | . . . Actions | -11 -10 -10 --------- Run | Yrd Mat Sub Total 2821 | 236 1124 1461 Wait 169 | 153 16 . Move 2176 | 65 1013 1098 Hop . | . . . Pick Up 49 | 6 33 10 Fast Attach 8 | 3 . 5 Attach 16 | 4 4 8 Detach . | . . . Swap 27 | 2 7 18 Drop 25 | . 10 15 Fire 285 | 3 41 241 Melee 66 | . . 66 Ram . | . . . Kick . | . . . Crush . | . . . Escape Stasis . | . . . Rewire . | . . . Trap . | . . . Miscellaneous . | . . . Route ------- -11/Scrapyard -10/Materials (discovered 6 exits: [*Mat x3] / *Min x2 / *Sub) -10/Subcaves (discovered 2 exits: *Mat / [*Rec]) History --------- Turn | Location | Event 7 | -11/Scrapyard | Discovered new exit (range 15) 262 | -11/Scrapyard | Entered Materials 301 | -10/Materials | Build established: Mutant 373 | -10/Materials | Discovered new exit (range 6) 402 | -10/Materials | Discovered new exit (range 14) 519 | -10/Materials | Discovered new exit (range 16) 612 | -10/Materials | Discovered new exit (range 13) 1188 | -10/Materials | Identified exit to Mines 1217 | -10/Materials | Discovered new exit (range 15) 2596 | -10/Materials | Discovered new exit (range 6) 2615 | -10/Materials | Entered Subcaves 3574 | -10/Subcaves | Discovered new exit (range 3) 3582 | -10/Subcaves | Identified exit to Materials 3812 | -10/Subcaves | Shifting Twisted Machinery released Flamer 3965 | -10/Subcaves | Visited Clippyterm 3975 | -10/Subcaves | Learned Research machine intel 4231 | -10/Subcaves | Ambushed by Subdweller buried in earth 4813 | -10/Subcaves | Ambushed by Subdweller buried in earth 5058 | -10/Subcaves | Ambushed by Subdweller buried in earth 5142 | -10/Subcaves | Discovered new exit (range 11) 5152 | -10/Subcaves | Core integrity fell below 50% 5427 | -10/Subcaves | Visited 4L-MR0's lab 5518 | -10/Subcaves | Found Power Bank 5929 | -10/Subcaves | A swath of the cavern ceiling suddenly collapsed 6656 | -10/Subcaves | Core integrity fell below 20% 6780 | -10/Subcaves | Shifting Twisted Machinery released Mak. Light Armor Plating 6998 | -10/Subcaves | Destroyed by 38-IUI(R) with Subdweller Machine Gun Last Messages --------------- 06620_ An expanding cloud of shrapnel blasts out in all directions. 06658_ 0R-7NV(R) knocked back. 06667_ 1M-RUT(R) knocked back. 06673_ 0R-7NV(R) destroyed. 06676_ 1M-RUT(R) destroyed. 06689_ Acquired 24 matter. 06692_ Acquired 9 matter. 06698_ Acquired 2 matter. 06702_ Acquired 10 matter. 06711_ 2Z-H21(u) tweaks Twisted Machinery. Mak. Light Armor Plating falls loose from the Twisted Machinery. 06805_ 2Z-H21(u) tweaks Twisted Machinery. 06845_ Lgt. Treads destroyed. 06850_ 0P-MU3(R) destroyed. 06873_ R3-5SY(R) affixes Scrap Shield Fragment to Scrap Shield. 06877_ R3-5SY(R) knocked back. 06883_ R3-5SY(R) destroyed. 06890_ Acquired 43 matter. 06982_ 38-IUI(R): "UDINAU!" 06991_ 38-IUI(R) knocked back. Map ----- +----------------------------------------------------+ | ???????????# ####???# " #??## | | ??????????## ##????## " #### | | ??????????# #?????### ## ## | | ??????????# ## #?????# "" # | | ?????????## #### ## #??????# " ## | | ??????#### #??########???# % % " # #? | | ??????# #?????????????# # ## " | | ??????# #?????????? %"# # # | | ??????# #?????????# # ##" ###?## | | ??????# ##?????????????##" #????? | | ??????# ##?????????????#"" """# ##????? | | ??????# #?????????????######## ####?????? | | ??????# #????????????????????###????????? | | ??????## ##???????????????????????????????? | | ???????# ##????????????????????????????????? | | ???????# #?????????#???????????????????????? | | ???????# ###???????? ???????????????????????? | | ???????# ##????????? " #??????????????????????? | | ???????## #?????????? " ###????????????????????? | | ????????## #??????????""" #????????????????????? | | ?????????####???????????"R ?????????????????????? | | ????????????????????????"%%%?????????????????????? | | ???????????????????????? #?????????????????????? | | ????????????????????????# ##????????????????????? | | ???????????????????????## #????????????????????? | | ???????????????????????#"@ #????????????????????? | | ???????????????????????## ##??#?????????????????? | | ???????????????????????## " ## # ##?????###??????? | | ??????????????????????## " " #????# ???????? | | ?????????????????????## " " #??? ???????? | | ????????????????????## " " # # #?? #???????? | | ????????????????????# ""####? ## ????????? | | ????????????????????# " " ###? ????????? | | ????????????????????# ## " ##?? #????????? | | ????????????????????# ### ##?# ##???????? | | ????????????????????# ### % ### #####???? | | ????????????????????# ##% % # # ##??? | | ????????????????????## % ! #??? | | ?????????????????????## % ### #??? | | ??????????????????????# %##?### # #?? | | ?????????????????????# #????## #??????# | | ????????????????????#" #????## ##?????## | | ????????????????????#"""" ##?????# #??# ## | | ???????????????????""" " #??????# ##?# | | ???????????????????""" " ##??????# #?#### # | | ???????????????????"###"" ###???????# ##?##### | | ??????????????????????# #?????????# ### ## | | ??????????????????????# #?????????# ## | | ??????????????????????# ?????????# | | ??????????????????????# ?????????## " | +----------------------------------------------------+ Best States ------------- Heat Dissipation 25 Energy Generation 12 Energy Capacity 265 Matter Stores 300 Matter Capacity 300 Sight Range 16 Terrain Scan Range 16 Terrain Scan Density 10 Resistance: KI 20 Resistance: TH 20 Resistance: EX 20 Resistance: EM 20 Resistance: I 20 Resistance: S 20 Resistance: P 20 Core Shielding 20 Evasion (%) 40 Recoil Reduction 2 Offensive Hacking 10 Item Schematics ----------------- None Robot Schematics ------------------ None Fabricated ------------ Nothing Alien Tech Used ----------------- None Achievements -------------- None Challenges ------------ None Game ------ Seed ArmoredCoordinationFilter Manual? 0 Play Time 00:32:58 Cumulative 65.5 hours Start 2024.04.25 @ 21:44:58 End 2024.04.25 @ 22:16:39 Sessions 1 Manual Loads 0 Difficulty Adventurer Special Mode None Game No. 28 Rogue 0 Adventurer 28 Explorer 0 Win Type - Total 2 Types 1/1/0/0/0/0/0/0/0 Lore% 45 Gallery% 58 Achievement% 52 Wizard Run 0 Options --------- Layout 0 ASCII 0 Keyboard 0 Movement Mouse Keybinds 0 Fullscreen 1 Font 18/SmallcapsGlow Map View 76x50 Zoom Use 0% Tactical HUD 1 Map Filters NONE Filters NONE Steam 1 RUN: 546d6c73-e3ac-4fa3-8a6e-7d1c4eaf4090